{"text_format":"2","workbook":"xlsx","n_sheets":29,"sheets":["Portada","Balance de Comprobación","Cambios Act. Netos Disponibles","Act. Netos Dispon. Beneficios","Nota 1","Nota 2","Nota 3","Nota 4","Nota 5","Nota 6","Nota 7","Nota 8","Nota 9","Nota 10","Nota 11","Nota 12","Nota 13","Nota 14","Nota 15","Nota 16","Nota 17","Nota 18","Nota 19","Nota 20","Nota 21","Nota 22","Nota 23","Nota 24","Nota 25"],"not_rendered":{"charts":0,"images":2,"macros":0,"external_links":0,"defined_names":31,"comments":0,"pivot_tables":0},"unopened":[],"bounds":{"document_bytes":16777216,"sheet_cells":100000,"run_cost":"one","rows_first":2000,"rows_last":500,"rows_between":2000,"halvings":0,"cell_chars":16384,"cell_head_chars":4096},"cells_cut":0,"cells_raw":0,"read":"whole","date_system":"1900"}

{"sheet":"Portada","index":0,"n_rows":0,"n_cols":0,"rows_kept":0,"cut":false,"hidden":false,"merged":[]}

{"sheet":"Balance de Comprobación","index":1,"n_rows":71,"n_cols":9,"rows_kept":71,"cut":false,"hidden":false,"merged":[[63,3,63,5],[48,2,48,3],[1,2,1,7],[3,2,3,7],[5,2,5,7],[61,3,62,5]]}
[]
[null,null,"Fondo de Jubilaciones y Pensiones del Poder Judicial"]
[]
[null,null,"Balance de Comprobación"]
[]
[null,null,"Al 31 de Julio 2019"]
[null," "]
[]
[null,null,"ACTIVO"]
[null,null,"Cuentas Corrientes Y De Ahorro ",null,null,3698804693.3000002]
[null,null,"Inversiones En Valores De Emisores Nacionales",null,null,542133842118.06]
[null,null,"Cuentas Por Cobrar",null,null,350238070.88999999]
[null,null,"Productos Por Cobrar Sobre Inversiones",null,null,10895003956.719999]
[null,null,"Préstamos a Afiliados",null,null,0]
[null,null,"Aportes Por Cobrar A Los Trabajadores",null,null,4495826461.8299999]
[null,null,"Aportes Por Cobrar Al Patrono",null,null,3368969709.6388001]
[null,null,"Aportes Por Cobrar Al Estado",null,null,418945688.99000001]
[null,null,"Otros Aportes Por Cobrar",null,null,216256174.99000001]
[null,null,"Mobiliario Y Equipo"]
[null,null,"Equipo De Cómputo"]
[null,null,"(Depreciación Acumulada)"]
[null,null,"Costo de Programas Informáticos-Software",null,null,7618670]
[null,null,"(Amortización Programas Informáticos)",null,null,-7618670]
[null,null,"GASTOS"]
[null,null,"Pérdidas por Negociación de Instrumentos Financieros",null,null,160.19999999999999]
[null,null,"Pérdidas Por Fluctuación Cambiaria",null,null,1948020050.5699999]
[null,null,"Pérdidas por Variaciones en la Unidad de Referencia",null,null,8807409.6300000008]
[null,null,"Gastos Generales",null,null,563910957.51999998]
[null,null,"PASIVO"]
[null,null,"Retenciones A Pensionados",{"$nulls":4},894050199.75999999]
[null,null,"Obligaciones Por Liquidar Empleados",{"$nulls":4},9373043.2899999991]
[null,null,"Obligaciones Transitorias por Liquidar",{"$nulls":4},2070975844.1600001]
[null,null,"Retención Por Servicios Recibidos"]
[null,null,"Cotización Seguro De Enfermedad Y Maternidad",{"$nulls":4},563814855.55999994]
[null,null,"Provisión Para Pensiones En Curso De Pago ",{"$nulls":4},559131244642.18994]
[null,null,"PATRIMONIO"]
[null,null,"Aportaciones recibidas ",{"$nulls":4},1078656333.3]
[null,null,"INGRESOS"]
[null,null,"Productos Sobre Inversiones De Emisores Nacionales",{"$nulls":4},3474917110.3099999]
[null,null,"Intereses Sobre Saldos En Cuentas Bancarias",{"$nulls":4},39026066.399999999]
[null,null,"Por Negociación de Instrumentos Financieros",{"$nulls":4},0]
[null,null,"Ganancias por Fluctuación Cambiaria",{"$nulls":4},585045546.54999995]
[null,null,"Ganancias por Variaciones en la Unidad de Referencia",{"$nulls":4},239017995.13]
[null,null,"Ingresos sobre Préstamos de Afiliados",{"$nulls":4},0]
[null,null,"Otros Ingresos",{"$nulls":4},12503815.689999999]
[]
[]
[]
[null,null,"Sumas Iguales",null,null,{"$f":"SUM(F10:F28)","v":568098625452.33862},null,{"$f":"SUM(H30:H45)","v":568098625452.34009},{"$f":"+F49-H49","v":-1.46484375E-3}]
[]
[]
[]
[]
[]
[null,null,"             Lic. Luis Guillermo Vásquez Ureña ",null,null,"      MBA. María Antonieta Herrerra Charraun"]
[null,null,"                Jefe Subproceso Contable ",null,null," Jefa Proceso Presupuestario Contable "]
[]
[]
[]
[]
[]
[null,null,null,"MBA. Floribel Campos Solano"]
[]
[null,null,null,"Jefa a.i. Macroproceso Financiero Contable"]
[]
[]
[null,null,"Realizado por:"]
[null,null,"Licda. Yesenia Flores Chacon"]
[null,null,"Coordinadora de Unidad I a.i. , Subproceso Contabilidad "]
[]
[null,null,"Observación: Enlace al Manual de Políticas Contables."]

{"sheet":"Cambios Act. Netos Disponibles","index":2,"n_rows":81,"n_cols":9,"rows_kept":81,"cut":false,"hidden":false,"merged":[[68,2,69,4],[70,2,70,4]]}
[null,"Fondo de Jubilaciones y Pensiones"]
[null,"Estado de Cambios en los Activos Netos Disponibles"]
[null,"Por el mes terminado al 31/07/2019"]
[null,"(En colones sin céntimos)"]
[]
[]
[null,null,null,"SALDO MENSUAL",null,null,"SALDO ACUMULADO"]
[null,null,"NOTAS "]
[null,"SALDO INICIAL",null,null,3262973063.1899967,"(1)",null,4387562556.5399952,"(2)"]
[]
[null,"INGRESOS",null,null,{"$f":"D13+D21","v":4350510534.0799999},null,null,{"$f":"G13+G21","v":34092249589.290001}]
[]
[null,"INGRESOS FINANCIEROS",null,{"$f":"SUM(D14:D19)","v":4338006718.3900003},null,null,{"$f":"SUM(G14:G19)","v":34047699789.75}]
[null,"Productos sobre Inversiones de Emisores Nacionales","Nota 1",{"$f":"+'Nota 1'!H24","v":3474917110.3099999},null,null,{"$f":"+'Nota 1'!H37","v":23666299238.980003}]
[null,"Intereses sobre Saldos en Cuentas Corrientes","Nota 2",{"$f":"+'Nota 2'!G21","v":39026066.399999999},null,null,{"$f":"+'Nota 2'!G36","v":115042970.14}]
[null,"Por negociación de instrumentos financieros","Nota 3",0,null,null,27092481.010000002]
[null,"Ganancias por Fluctuación Cambiaria","Nota 4",{"$f":"+'Nota 4'!D17","v":585045546.54999995},null,null,{"$f":"+'Nota 4'!F17","v":8830846865.5999985}]
[null,"Ganancias por Variaciones en la Unidad de Referencia","Nota 5",{"$f":"+'Nota 5'!D15","v":239017995.13},null,null,{"$f":"+'Nota 5'!F15","v":1408368809.6499999}]
[null,"Ingresos sobre Préstamos a Afiliados y Pensionados ","Nota 6",{"$f":"+'Nota 6'!J13","v":0},null,null,{"$f":"+'Nota 6'!L13","v":49424.37}]
[]
[null,"OTROS INGRESOS",null,12503815.689999999,null,null,44549799.539999999]
[]
[null,"PLAN DE CONTRIBUCIONES","Nota 7",null,{"$f":"SUM(D26:D29)","v":7628311905.8500004},null,null,{"$f":"SUM(G26:G29)","v":53043844704.440002}]
[]
[null,"RESERVAS EN FORMACION"]
[null,"De los trabajadores",null,{"$f":"+'Nota 7'!F14","v":3065659022.0500002},null,null,{"$f":"+'Nota 7'!H14","v":21562836412.32}]
[null,"Del Patrono",null,{"$f":"+'Nota 7'!F15","v":3366921736.4699998},null,null,{"$f":"+'Nota 7'!H15","v":23036195619.119999}]
[null,"Del Estado",null,{"$f":"+'Nota 7'!F16","v":285854115.27999997},null,null,{"$f":"+'Nota 7'!H16","v":2109259586.5}]
[null,"De los Pensionados",null,{"$f":"+'Nota 7'!F17+'Nota 7'!F18","v":909877032.04999995},null,null,{"$f":"+'Nota 7'!H17+'Nota 7'!H18","v":6335553086.5}]
[null,"Rendimientos Acumulados",null,0]
[]
[null,"UTILIDAD ( PERDIDA DEL EJERCICIO )",null,0]
[]
[null,"TOTAL ADICIONES",null,null,{"$f":"E11+E23","v":11978822439.93},null,null,{"$f":"H11+H23","v":87136094293.730011}]
[]
[null,"SALIDA DE RECURSOS",null,null,{"$f":"D37","v":9812628635.8900013},null,null,{"$f":"G37","v":70699894981.270004}]
[null,"Por Nuevos Pensionados","Nota 8",{"$f":"+'Nota 8'!D16","v":9812628635.8900013},null,null,{"$f":"+'Nota 8'!F16","v":70699894981.270004}]
[]
[null,"GASTOS",null,null,{"$f":"D41+D47","v":2520738577.9200001},null,null,{"$f":"G41+G47","v":17915333579.690002}]
[]
[null,"GASTOS FINANCIEROS",null,{"$f":"D43+D44+D45","v":1956827620.4000001},null,null,{"$f":"SUM(G43:G45)","v":14025289592.030001}]
[null,"Pérdida por Negociación de Inst. Financ.",null,0,null,null,0]
[null,"Pérdida por Negociación de Instrumentos Financieros","Nota 9",{"$f":"+'Nota 9'!D11","v":160.19999999999999},null,null,{"$f":"+'Nota 9'!F11","v":396736.05}]
[null,"Pérdida por Fluctuación Cambiaria","Nota 10",{"$f":"+'Nota 10'!D16","v":1948020050.5699999},null,null,{"$f":"+'Nota 10'!F16","v":13824740060.450001}]
[null,"Pérdida por Variaciones en la Unidad de Referencia","Nota 11",{"$f":"+'Nota 11'!D15","v":8807409.6300000008},null,null,{"$f":"+'Nota 11'!F15","v":200152795.53}]
[]
[null,"GASTOS GENERALES","Nota 12",{"$f":"+'Nota 12'!D16","v":563910957.51999998},null,null,{"$f":"+'Nota 12'!F16","v":3890043987.6599998}]
[]
[null,"TOTAL DE DEDUCCIONES",null,null,{"$f":"E36+E39","v":12333367213.810001},null,null,{"$f":"H36+H39","v":88615228560.960007}]
[]
[null,"ACTIVOS NETOS DISPONIBLES PARA BENEFICIOS"]
[null,"FUTUROS AL FINAL DEL PERIODO (3)",null,null,{"$f":"E9+E34-E49","v":2908428289.3099957},null,null,{"$f":"H9+H34-H49","v":2908428289.3099976}]
[]
[]
[null,"Observaciones: "]
[null,"(1) Saldo inicial mensual: Corresponde al total de activos disponibles para beneficios futuros al final del mes de junio 2019."]
[null,"(2) Saldo acumulado: Pertenece al total de activos disponibles de beneficios futuros al final del año anterior (Diciembre 2018)."]
[null,"(3) Activos Netos Disponibles para Beneficios Futuros al Final del Periodo: Corresponde a la suma del saldo inicial mas el total de adiciones, menos el total de deducciones."]
[]
[]
[]
[null,"             Lic. Luis Guillermo Vásquez Ureña ",null,null,"      MBA. María Antonieta Herrerra Charraun"]
[null,"               Jefe Subproceso Contable ",null,null,"     Jefa Proceso Presupuestario Contable "]
[]
[]
[]
[]
[]
[null,null,"MBA. Floribel Campos Solano"]
[]
[null,null,"Jefa a.i. Macroproceso Financiero Contable"]
[]
[]
[]
[]
[null,"Realizado por:"]
[null,"Licda. Yesenia Flores Chacon"]
[null,"Coordinadora de Unidad I a.i. , Subproceso Contabilidad "]
[]
[]
[null,"Observación: Enlace al Manual de Políticas Contables."]

{"sheet":"Act. Netos Dispon. Beneficios","index":3,"n_rows":76,"n_cols":5,"rows_kept":76,"cut":false,"hidden":false,"merged":[[65,1,65,3],[66,1,66,3]]}
[]
[null,"Fondo de Jubilaciones y Pensiones del Poder Judicial"]
[null,"Estado de Activos Netos Disponibles para Beneficios"]
[null,"AL 31/07/2019"]
[null,"(En colones sin céntimos)"]
[null,null,"NOTAS"]
[null,"DISPONIBILIDADES",null,null,{"$f":"D8","v":3698804693.2999992}]
[null,"Cuentas Corrientes y de Ahorro","Nota 13",{"$f":"+'Nota 13'!D23","v":3698804693.2999992}]
[]
[null,"INVERSIONES EN VALORES ",null,null,{"$f":"D12","v":542133842118.06}]
[null,"EN CURSO DE PAGO"]
[null,"Inversiones en Valores de Emisores Nacionales ","Nota 14",{"$f":"+'Nota 14'!D29","v":542133842118.06}]
[]
[null,"CUENTAS Y PRODUCTOS POR COBRAR SOBRE INVERSIONES",null,null,{"$f":"SUM(D16:D17)","v":11245242027.609999}]
[null,"PROVISION PARA PENSIONES EN CURSO DE PAGO"]
[null,"Cuentas Por Cobrar","Nota 15",{"$f":"+'Nota 15'!D16","v":350238070.88999999}]
[null,"Productos Por Cobrar Sobre Inversiones De Emisores Nacionales ","Nota 16",{"$f":"+'Nota 16'!D25","v":10895003956.719999}]
[]
[null,"PRESTAMOS A AFILIADOS Y PENSIONADOS",null,null,{"$f":"D20","v":0}]
[null,"Préstamos por Cobrar","Nota 17",{"$f":"+'Nota 17'!D24","v":0}]
[null,"Productos por Cobrar sobre Préstamos","Nota 15",0]
[]
[null,"APORTES POR COBRAR",null,null,{"$f":"SUM(D24:D27)","v":8499998035.4487991}]
[null,"Aportes Por Cobrar A Los Trabajadores","Nota 18",{"$f":"+'Nota 18'!J12","v":4495826461.8299999}]
[null,"Aportes Por Cobrar Al Patrono","Nota 18",{"$f":"+'Nota 18'!J16","v":3368969709.6388001}]
[null,"Aportes Por Cobrar Al Estado","Nota 18",{"$f":"+'Nota 18'!J19","v":418945688.99000001}]
[null,"Otros Aportes Por Cobrar","Nota 18",{"$f":"+'Nota 18'!J22","v":216256174.99000001}]
[]
[null,"PROPIEDAD, PLANTA Y EQUIPO",null,null,0]
[null,"Mobiliario y Equipo",null,0]
[null,"Equipo de Cómputo",null,0]
[null,"(Depreciación Acumulada)",null,0]
[]
[null,"OTROS ACTIVOS",null,null,0]
[null,"Intangibles","Nota 19",0]
[]
[null,"ACTIVO TOTAL",null,null,{"$f":"E7+E10+E14+E19+E23","v":565577886874.41882}]
[]
[null,"CUENTAS POR PAGAR",null,null,{"$f":"SUM(D40:D42)","v":2974399087.1700001}]
[null,"Retenciones A Pensionados","Nota 20",{"$f":"+'Nota 20'!E21","v":894050199.75999999}]
[null,"Obligaciones Por Liquidar Empleados y Exempleados","Nota 21",{"$f":"+'Nota 21'!D21","v":9373043.2500000019}]
[null,"Obligaciones Transitorias por Liquidar","Nota 22",{"$f":"+'Nota 22'!D26","v":2070975844.1600001}]
[]
[null,"PROVISIONES",null,null,{"$f":"D45","v":563814855.55999994}]
[null,"Cotización Seguro De Enfermedad y Maternidad","Nota 23",{"$f":"+'Nota 23'!F12","v":563814855.55999994}]
[]
[null,"PROVISIONES PARA PENSIONES EN CURSO DE PAGO","Nota 24",null,{"$f":"+'Nota 24'!J16","v":559131244642.18994}]
[]
[null,"PASIVO TOTAL",null,null,{"$f":"E47+E44+E39","v":562669458584.92004}]
[{"$nulls":4}," "]
[null,"ACTIVOS NETOS DISPONIBLES PARA BENEFICIOS FUTUROS (1)",null,null,{"$f":"+'Cambios Act. Netos Disponibles'!E52","v":2908428289.3099957}]
[]
[null,"CUENTAS DE ORDEN","Nota 25",null,{"$f":"+'Nota 25'!D12","v":296402668.36000001}]
[]
[null,"Observaciones:"]
[null,"(1) Activos Netos Disponibles para Beneficios Futuros al Final del Periodo: Corresponde al total de activo menos el total de pasivo."]
[]
[]
[]
[null,"             Lic. Luis Guillermo Vásquez Ureña ","      MBA. María Antonieta Herrerra Charraun"]
[null,"           Jefe Subproceso Contable "," Jefa Proceso Presupuestario Contable "]
[]
[]
[]
[]
[null,"MBA. Floribel Campos Solano"]
[null,"                  Jefa a.i. Macroproceso Financiero Contable"]
[]
[]
[]
[]
[null,"Realizado por:"]
[null,"Licda. Yesenia Flores Chacon"]
[null,"Coordinadora de Unidad I a.i. , Subproceso Contabilidad "]
[]
[null,"Observación: Enlace al Manual de Políticas Contables."]

{"sheet":"Nota 1","index":4,"n_rows":37,"n_cols":8,"rows_kept":37,"cut":false,"hidden":false,"merged":[[2,1,3,7],[4,1,4,7],[40,1,40,7],[8,1,8,7]]}
[]
[null,"Nota 1:"]
[null,"Productos sobre Inversiones de Emisores Nacionales"]
[]
[null,"al 31 de Julio de 2019"]
[]
[]
[]
[null,"De acuerdo con lo establecido por la SUPEN, este rubro se encuentra conformado por los intereses devengados del mes producto de las inversiones en títulos valores, la amortización de los descuentos, las comisiones pagadas y primas en títulos valores."]
[]
[]
[]
[null,"MENSUAL "]
[]
["Cuenta Contable","PRODUCTOS SOBRE INVERSIONES DE VALORES NACIONALES",null,"COLONES",null,"DOLARES",null,"TOTAL"]
[]
["511.01.","Intereses devengados",null,3189612895.9000001,null,260283920.04999998,null,3449896815.9500003]
["511.01.","Amortización de descuento",null,21160160.300000001,null,7839525.2000000002,null,28999685.5]
["511.01.","Comisión devengada",null,-508854.06,null,0,null,-508854.06]
["511.01.","Amortización de prima",null,-129764983,null,-1596372.26,null,-131361355.26000001]
["511.01.","Otros intereses devengados",null,0,null,0,null,0]
["511.01.","Ingresos por Dividendos",null,0,null,127890818.18000001,null,127890818.18000001]
[]
[null,"TOTAL DE PRODUC. SOBRE INVERS. DE VALORES NACIONALES.",null,{"$f":"SUM(D17:D22)","v":3080499219.1400003},null,{"$f":"SUM(F17:F23)","v":394417891.16999996},null,{"$f":"SUM(H17:H23)","v":3474917110.3099999}]
[]
[null,"ACUMULADO"]
[]
["Cuenta Contable","PRODUCTOS SOBRE INVERSIONES DE VALORES NACIONALES",null,"COLONES",null,"DOLARES",null,"TOTAL"]
[]
["511.01.","Intereses devengados",null,21633976587.800007,null,1807295200.2800002,null,23441271788.080006]
["511.01.","Amortización de descuento",null,135774880.99000001,null,51602075.859999999,null,187376956.85000002]
["511.01.","Comisión devengada",null,-6327826.6299999999,null,-544752.65,null,-6872579.2800000003]
["511.01.","Amortización de prima",null,-926221899.12000012,null,-10172248.49,null,-936394147.61000013]
["511.01.","Otros intereses devengados ",null,0,null,0,null,0]
["511.01.","Ingresos por Dividendos",null,0,null,980917220.94000006,null,980917220.94000006]
[]
[null,"TOTAL DE PRODUC. SOBRE INVERS. DE VALORES NACIONALES.",null,{"$f":"SUM(D30:D36)","v":20837201743.040009},null,{"$f":"SUM(F30:F36)","v":2829097495.9400001},null,{"$f":"SUM(H30:H36)","v":23666299238.980003}]

{"sheet":"Nota 2","index":5,"n_rows":51,"n_cols":12,"rows_kept":51,"cut":false,"hidden":false,"merged":[[2,2,3,6],[4,2,4,6],[6,2,6,6]]}
[]
[null,null,"Nota 2:"]
[null,null,"Intereses sobre Saldos en Cuentas Corrientes"]
[]
[null,null,{"$f":"+'Nota 1'!B5","v":"al 31 de Julio de 2019"}]
[]
[null,null,"Como resultado de los saldos que se mantienen en las cuentas corrientes del Banco Nacional de Costa Rica, Banco de Costa Rica y  Banco Popular, al cierre del presente mes los intereses sobre saldos en cuentas corrientes son los siguientes:"]
[]
[]
[null,null,"Mensual"]
[]
[null,"Cuenta Contable","Cuenta Corriente ",null,"Banco",null,"Intereses Ganados en el Periodo"]
[]
[null,"513.01.00.1.01.01     ","1234-0",null,"Banco Nacional de Costa Rica ",null,1113.6400000000001]
[null,"513.01.00.1.01.03     ","229-32-9",null,"Banco de Costa Rica ",null,38904096.509999998]
[null,"513.01.00.1.01.04     ","18-1019277",null,"Banco Popular y de Desarrollo Comunal ",null,0]
[null,"513.01.00.1.01.05     ","174961-7",null,"Banco de Costa Rica ",null,0]
[null,"513.01.00.2.01.02     ","1914-1 $",null,"Banco Popular y de Desarrollo Comunal ",null,0]
[null,"513.01.00.2.01.03     ","112247-9 $",null,"Banco de Costa Rica ",null,120856.25]
[]
[null,null,"Total",null,null,null,{"$f":"SUM(G14:G20)","v":39026066.399999999}]
[]
[]
[null,null,"Acumulado"]
[]
[null,"Cuenta Contable","Cuenta Corriente ",null,"Banco",null,"Intereses Ganados en el Periodo"]
[]
[null,"513.01.00.1.01.01     ","1234-0",null,"Banco Nacional de Costa Rica ",null,14190.53]
[null,"513.01.00.1.01.03     ","229-32-9",null,"Banco de Costa Rica ",null,111851517.81999999]
[null,"513.01.00.1.01.04     ","18-1019277",null,"Banco Popular y de Desarrollo Comunal ",null,3433.34]
[null,"513.01.00.1.01.05     ","174961-7",null,"Banco de Costa Rica ",null,0]
[null,"513.01.00.2.01.02     ","1914-1 $",null,"Banco Popular y de Desarrollo Comunal ",null,5.97]
[null,"513.01.00.2.01.03     ","112247-9 $",null,"Banco de Costa Rica ",null,3173822.48]
[]
[]
[null,null,"Total",null,null,null,{"$f":"SUM(G28:G35)","v":115042970.14}]
{"$rows_empty":14}
[{"$nulls":11},0]

{"sheet":"Nota 3","index":6,"n_rows":13,"n_cols":6,"rows_kept":13,"cut":false,"hidden":false,"merged":[[2,1,3,5],[4,1,4,5],[7,1,7,5],[14,1,15,5]]}
[]
[null,"Nota 3:"]
[null,"Ganancias por Negociación de Instrumentos Financieros"]
[]
[null,{"$f":"+'Nota 1'!$B$5:$H$5","v":"al 31 de Julio de 2019"}]
[]
[]
[null,"Se registra la ganancia generada pruducto del canje de instrumentos del Ministerio de Hacienda realizado por el Porceso de Inversiones."]
[]
[]
["Cuenta Contable","Cuenta",null,"Mes",null,"Acumulado"]
["514.00.00     ","Ganancia por Negociación de Instrumentos Financieros",null,0,null,27092481.010000002]
[null,"Ganancia Total Generada",null,{"$f":"SUM(D12:D12)","v":0},null,{"$f":"SUM(F12:F12)","v":27092481.010000002}]

{"sheet":"Nota 4","index":7,"n_rows":17,"n_cols":6,"rows_kept":17,"cut":false,"hidden":false,"merged":[[2,1,3,5],[4,1,4,5],[18,1,19,5],[7,1,7,5],[9,1,9,5]]}
[]
[null,"Nota 4:"]
[null,"Ganancias por Fluctuación Cambiaria"]
[]
[null,{"$f":"+'Nota 1'!$B$5:$H$5","v":"al 31 de Julio de 2019"}]
[]
[]
[null,"Se registra la ganancia generada en las partidas de los estados financieros cuando el tipo de cambio para la valuación de los activos en dólares, emitido por el Banco Central de Costa Rica, experimenta una tendencia al alza, provocando la ganancia en el valor de los rubros que componen estos estados financieros. "]
[]
[null,"Es importante señalar que el tipo de cambio utilizado para la valoración de las inversiones en dólares y cuentas relacionadas, así como de los movimientos de las cuentas bancarias en dólares es el tipo de cambio para el sector público no bancario, de conformidad con lo establecido en la Ley Orgánica del Banco Central de Costa Rica (BCCR) en su artículo 89."]
[]
["Cuenta Contable","Cuenta",null,"Mes",null,"Acumulado"]
["517.02.00     ","Por Cuentas Corrientes",null,1060167.72,null,35769988.490000002]
["517.04.00     ","En Inversiones En Valores De Emisores Nacionales $",null,577616241.75,null,8708820729.8999996]
["517.07.00     ","Por Cuentas Por Cobrar",null,833795.9,null,3013727.14]
["517.08.00     ","Por Productos Por Cobrar Sobre Inversion",null,5535341.1799999997,null,83242420.069999993]
[null,"Ganancia Total Generada",null,{"$f":"SUM(D13:D16)","v":585045546.54999995},null,{"$f":"SUM(F13:F16)","v":8830846865.5999985}]

{"sheet":"Nota 5","index":8,"n_rows":15,"n_cols":6,"rows_kept":15,"cut":false,"hidden":false,"merged":[[2,1,3,5],[4,1,4,5],[9,1,9,5],[7,1,7,5]]}
[]
[null,"Nota 5:"]
[null,"Ganancias por Variaciones en la Unidad de Referencia"]
[]
[null,{"$f":"+'Nota 1'!$B$5:$H$5","v":"al 31 de Julio de 2019"}]
[]
[]
[null,"Ganancias en virtud de la colocación de recursos a través de Títulos de Unidades de Desarrollo (TUDES) que ofrece el Ministerio de Hacienda a largo plazo."]
[]
[null,"Los Tudes, son títulos valores expresados en unidades de desarrollo, éstas unidades corresponden a un índice calculado por la Superintendencia General de Valores, con base a la variación registrada en el Índice de Precios al Consumidor del mes anterior. Al vencimiento de los cupones y del principal se cancelan en colones, por lo que la ganancia o la pérdida en los títulos valores va a depender del comportamiento de la inflación y por ende, de la variación en el valor de la unidad de desarrollo. Mensualmente se realiza el ajuste de las inversiones de acuerdo con el valor de la unidad de desarrollo al final del mes, a fin de que se actualice su valor, reflejando una pérdida o ganancia."]
[]
[]
["Cuenta Contable","Cuenta",null,"Mes",null,"Acumulado"]
["518.00.00","En valores emitidos por el Gobierno",null,239017995.13,null,1408368809.6499999]
[null,"Ganancia Total Generada",null,{"$f":"SUM(D14:D14)","v":239017995.13},null,{"$f":"SUM(F14:F14)","v":1408368809.6499999}]

{"sheet":"Nota 6","index":9,"n_rows":14,"n_cols":14,"rows_kept":14,"cut":false,"hidden":false,"merged":[[2,1,3,11],[4,1,4,11],[7,1,7,11],[8,1,8,11],[9,1,9,11]]}
[]
[null,"Nota 6:"]
[null,"Ingresos sobre Préstamos a Afiliados y Pensionados "]
[]
[null,{"$f":"+'Nota 1'!$B$5:$H$5","v":"al 31 de Julio de 2019"}]
[]
[]
[null,"Constituye el interés devengado por el crédito otorgado a la Asociación Nacional de Empleados Judiciales (ANEJUD), según contrato suscrito en diciembre de 2008 por ¢1,000,000,000 (sin número de contrato), entre ANEJUD y el Consejo Superior del Poder Judicial, en su condición de administrador de este Fondo. El detalle de los montos se muestran en la nota N° 17 de este informe."]
[]
[null,"La totalidad del préstamo de ANEJUD se canceló en febrero de 2019."]
["Cuenta Contable","Total de Préstamo",null,"Entidad",null,"Plazo",null,"Tasa actual",null,"Ingreso Por Interes mensual",null,"Ingreso Por Interes Acumulado"]
[{"$nulls":13}," "]
["519.00.00",1000000000,null,"ANEJUD",null,"10 años",null,8.0799999999999997E-2,null,0,null,49424.37]
[{"$nulls":7}," "]

{"sheet":"Nota 7","index":10,"n_rows":58,"n_cols":14,"rows_kept":58,"cut":false,"hidden":false,"merged":[[57,1,57,7],[58,1,58,7],[53,1,53,7],[55,1,55,7],[31,15,33,21],[46,1,46,7],[28,1,28,7],[2,1,3,7],[4,1,4,7],[24,1,24,7],[30,1,30,7],[26,1,26,7],[7,1,7,7],[9,1,9,7]]}
[]
[null,"Nota 7:"]
[null,"PLAN DE CONTRIBUCIONES"]
[]
[null,{"$f":"++'Nota 1'!$B$5:$H$5","v":"al 31 de Julio de 2019"}]
[]
[]
[null,"Comprende los aportes realizados  por el Poder Judicial en su calidad de Patrono y Estado, los cuales se aplican sobre los salarios devengados por los servidores judiciales."]
[]
[null,"Asimismo, está constituido por la contribución de los empleados, jubilados y pensionados judiciales, a los cuales en la actualidad se les deduce de su salario, jubilación y pensión. "]
[]
["Cuenta Contable","Aportes",null,"Porcentajes",null,"Mensual",null,"Acumulado"]
[]
["311.01.00.1","Trabajadores",null,0.13,null,3065659022.0500002,null,21562836412.32]
["312.01.00.1","Patrono",null,0.14360000000000001,null,3366921736.4699998,null,23036195619.119999]
["313.01.00.1.00","Estado",null,1.24E-2,null,285854115.27999997,null,2109259586.5]
["314.01.00.1.00.00","Jubilados y Pensionados ",null,0.13,null,837479856.63999999,null,5777225309.8299999]
["314.01.00.1.00.01","Contribución Solidaria",null,"-",null,72397175.409999996,null,558327776.66999996]
[]
[null,"Total Aportes",null,null,null,{"$f":"SUM(F14:F18)","v":7628311905.8500004},null,{"$f":"SUM(H14:H18)","v":53043844704.440002}]
[]
[]
[null,"Notas:   ",{"$nulls":11}," "]
[]
[null,"1-)  Mediante Acuerdo del Consejo Superior N° 2-2018, art I, se autoriza a disminuir el porcentaje del aporte estatal, a partir del mes de enero 2018 pasando de 1.24% a 0.58%, lo anterior por cuanto el Ministerio de Hacienda recortó del Presupuesto del Poder Judicial la suma de ¢1,200,000,000 (Mil doscientos millones de colones)."]
[]
[null,"2-) Mediante Acuerdo del Consejo Superior, sesión N°26-2018 del 5/04/2018, en su punto tercer indica:\n\"[...] modificar el acuerdo tomado en sesión N°2-18 del 11/01/2018, art I, por lo que deberá la Dirección de Gestión Humana registrar como porcentaje del aporte estatal al Fondo de Jubilaciones y Pensiones el definido por la Caja Costarricense del Seguro Social (CCSS)\". Según lo definido en este acuerdo el porcentaje regresa al 1.24% establecido en Decreto Ejecutivo N° 39202-MTSS-H en su artículo 2, publicado en la Gaceta N° 170 del martes 01 de setiembre del 2015."]
[]
[null,"3-) Mediante la publicación de la Ley 9544, que reforma el Regimen de Jubilaciones y Pensiones del Poder Judicial y Acuerdo del Consejo Superior Sesión N°46-18 celebrada el 22/05/2018, art VI, se solicita realizar a partir de esta fecha el incremento al aporte obrero del 11% al 13%, así como el rebajo de la contribución especial, solidaria y redistributiva a las personas jubiladas y pensionadas, conforme el articulo 236 de esta Ley."]
[]
[null,"4-) La Dirección de Gestión Humana mediante oficios 006-CP-DGH-2018, 009-CP-DGH-2018, 011-CP-DGH-2018, 012-C-DGH-2018,  0017-CP-DGH-2018 , 0018-CP-DGH-2018, 0019-CP-DGH-2018, 0022-CP-DGH-2018, 0023-CP-DGH-2018, 0025-CP-DGH-2018 y 0001-CP-DGH-2019 remiten la información equivalente al 0.66% para los meses de Enero a Diciembre del año 2018, con el fin de revelar el detalle de la cuenta por cobrar por la diferencia porcentual hasta que se modifiquen los parametros a nivel de sistemas:"]
[]
[null,null,null,"Mes",null,"Monto"]
[null,null,null,"Enero",null,120402999.88]
[null,null,null,"Febrero",null,140520637.69]
[null,null,null,"Marzo",null,136148891.55999997]
[null,null,null,"Abril",null,135077110.63999999]
[null,null,null,"Mayo",null,137614704.16999999]
[null,null,null,"Junio",null,137740225.81]
[null,null,null,"Julio",null,138157636.90000001]
[null,null,null,"Agosto",null,139260367.99000001]
[null,null,null,"Setiembre",null,139779141.06]
[null,null,null,"Octubre",null,139094941.34]
[null,null,null,"Noviembre",null,141560208.94]
[null,null,null,"Diciembre",null,{"$f":"140230443.99-859.9+4797.1","v":140234381.19}]
[null,null,null,"Total",null,{"$f":"SUM(F34:F45)","v":1645591247.1699998}]
[]
[null,null,null,"Salario escolar",null,"Monto"]
[null,null,null,"2017-2018",null,129717256.81]
[]
[null,null,null,"Total ",null,{"$f":"+F49+F46","v":1775308503.9799998}]
[]
[]
[null,"En el presupuesto extraordinario H-10 a solicitud del Ministerio de Hacienda, se incorporaron recursos para cubrir la deuda del 0.66%, lo cual se está a la espera que el Ministerio de Hacienda envíe a la Asamblea Legislativa para su aprobación. Con correo electrónico del 06 de agosto de 2019 la Jefatura del Subproceso de Presupuesto indica: \" Nos encontramos a la espera de la aplicación por parte del Ministerio de Hacienda, para proceder con la revisión y aplicación en el SIGAPJ.\""]
[]
[null,"5-) En el Acuerdo del Consejo Superior, sesión N° 4-19 del 17 de enero de 2019 artículo XXXVI se acordó: \"Tomar nota de la comunicación de la Dirección de Gestión Humana, en oficio DGH-004-2019 del 10 de enero de 2019, referente a el cambio realizado en el parámetro del aporte estatal al Fondo de Jubilaciones y Pensiones de un 0.58% a  1.24%, fundamentado en los recursos asignados  por el Ministerio de Hacienda en la subpartida 60404, según lo establecido en la Ley de Presupuesto Ordinario y Extraordinario de la República para el Ejercicio Económico del 2019.\""]
[]
[null,"6-) Mediante oficio N° 62-DE-2019 del 10 de enero de 2019 la Dirección Ejecutiva traslada el oficio N° 18-19 con el acuerdo tomado por la Corte Plena en sesión N° 53-18 celebrada el 19 de noviembre de 2018, artículo XXXIV donde se acuerda: \n“[…] el Poder Judicial (Patrono) deberá pagar al Fondo de Jubilaciones y Pensiones del    Poder Judicial un 0,15% que corresponde a la diferencia entre el 0,50% acordado por Corte y el 0,65% que es la correcta proporción del aporte patronal…”. El Macroproceso realiza el estudio y da respuesta a la Dirección Ejecutiva con oficio N° 259-SC-2019 indicando que la Dirección de Gestión Humana señala que el monto a pagar al FJPPJ es de ¢43,211,338.70, el cual es autorizado por la Dirección Ejecutiva mediante oficio N° 3071-DE-2019 del 5 de julio de 2019. Esto es cancelado en Julio 2019 mediante la Nota de crédito N°19215524."]

{"sheet":"Nota 8","index":11,"n_rows":16,"n_cols":6,"rows_kept":16,"cut":false,"hidden":false,"merged":[[2,1,3,5],[4,1,4,5],[7,1,7,6],[18,1,18,5]]}
[]
[null,"Nota 8:"]
[null,"SALIDA DE RECURSOS"]
[]
[null,{"$f":"+'Nota 7'!B5:H5","v":"al 31 de Julio de 2019"}]
[]
[]
[null,"Corresponde al traslado de todos los recursos de la cuenta patrimonial “Reserva en Formación” a la cuenta Provisión para Pensiones en Curso de Pago”, por ende todos los recursos generados de los aportes, así como los rendimientos obtenidos por las inversiones se continúan registrando en la Provisión Para Pensiones en Curso de Pago."]
[]
[]
[null,null,null,"Mensual",null,"Acumulado"]
[]
[null,"Aportes ",null,7555914730.4400005,null,52485516927.770004]
[null,"Rendimientos ",null,2256713905.4500003,null,18214378053.5]
[]
[null,"TOTAL",null,{"$f":"SUM(D13:D14)","v":9812628635.8900013},null,{"$f":"SUM(F13:F14)","v":70699894981.270004}]

{"sheet":"Nota 9","index":12,"n_rows":12,"n_cols":6,"rows_kept":12,"cut":false,"hidden":false,"merged":[[2,1,3,5],[4,1,4,5],[7,1,7,6],[13,1,13,5]]}
[]
[null,"Nota 9:"]
[null,"Pérdida por Negociación de Instrumentos Financieros"]
[]
[null,{"$f":"+'Nota 7'!B5:H5","v":"al 31 de Julio de 2019"}]
[]
[]
[null,"Corresponde a gastos asociados a las comisiones producto de compra de divisas para la negociación de Inversiones."]
[]
["Cuenta Contable","Cuenta",null,"Mes",null,"Acumulado"]
["411.00.00","Pérdida por Negociación de Instrumentos Financieros",null,160.19999999999999,null,396736.05]
[null,"Pérdida Total Generada",null,{"$f":"SUM(D11:D11)","v":160.19999999999999},null,{"$f":"SUM(F11:F11)","v":396736.05}]

{"sheet":"Nota 10","index":13,"n_rows":16,"n_cols":6,"rows_kept":16,"cut":false,"hidden":false,"merged":[[2,1,3,5],[4,1,4,5],[7,1,7,5]]}
[]
[null,"Nota 10:"]
[null,"Pérdida por Fluctuación Cambiaria"]
[]
[null,{"$f":"+'Nota 8'!B5:F5","v":"al 31 de Julio de 2019"}]
[]
[]
[null,"Corresponde a la pérdida generada en cuentas corrientes, inversiones y cuentas relacionadas cuando el tipo de cambio para la valuación de los activos en dólares, emitido por el Banco Central de Costa Rica."]
[]
[]
["Cuenta Contable","Cuenta",null,"Mes",null,"Acumulado"]
["416.02.00     ","Por Cuentas Corrientes",null,9452360.5500000007,null,84407247.680000007]
["416.04.00     ","En Inversiones En Valores De Emisores Nacionales $",null,1915479498.4200001,null,13601755284.52]
["416.07.00     ","Por Cuentas Por Cobrar",null,1409426.87,null,3363827.2]
["416.08.00     ","Por Productos Por Cobrar Sobre Inversion",null,21678764.73,null,135213701.05000001]
[null,"Pérdida Total Generada",null,{"$f":"SUM(D12:D15)","v":1948020050.5699999},null,{"$f":"SUM(F12:F15)","v":13824740060.450001}]

{"sheet":"Nota 11","index":14,"n_rows":15,"n_cols":6,"rows_kept":15,"cut":false,"hidden":false,"merged":[[3,1,4,5],[5,1,5,5],[8,1,8,5],[10,1,10,5]]}
[]
[null,"Nota 11:"]
[]
[null,"Pérdida por Variaciones en la Unidad de Referencia"]
[]
[null,{"$f":"+'Nota 10'!B5:F5","v":"al 31 de Julio de 2019"}]
[]
[]
[null,"Pérdida generada por la variación en la unidad de referencia de las Unidades de Desarrollo (UDES), relativa a los recursos invertidos por el Fondo a través de títulos en UDES (TUDES) que ofrece el Ministerio de Hacienda a largo plazo."]
[]
[null,"Conforme lo establece el manual de cuentas de SUPEN se registra la pérdida contable producto de la disminución en la unidad de referencia en los rubros de valor facial de las inversiones en TUDES, prima amortizada y el descuento recibido."]
[]
["Cuenta Contable","Cuenta",null,"Mes",null,"Acumulado"]
["417.00.00","En valores emitidos por el Gobierno",null,8807409.6300000008,null,200152795.53]
[null,"Pérdida Total Generada",null,{"$f":"SUM(D14:D14)","v":8807409.6300000008},null,{"$f":"SUM(F14:F14)","v":200152795.53}]

{"sheet":"Nota 12","index":15,"n_rows":25,"n_cols":6,"rows_kept":25,"cut":false,"hidden":false,"merged":[[21,1,21,5],[20,1,20,5],[23,1,23,5],[24,1,24,5],[2,1,3,5],[4,1,4,5],[7,1,7,5],[18,1,18,5],[17,1,17,5]]}
[]
[null,"Nota 12:"]
[null,"GASTOS GENERALES"]
[]
[null,{"$f":"+'Nota 11'!B6:F6","v":"al 31 de Julio de 2019"}]
[]
[]
[null,"Esta cuenta agrupa varias partidas, las cuales se describen a continuación:"]
[]
["Cuenta Contable","GASTOS GENERALES",null,"MENSUAL",null,"ACUMULADO"]
[]
["420.05.00     ","Servicios Bancarios",null,109408.02,null,516980.01]
["420.07.00     ","Cotización Seguro De Enfermedad y Maternidad",null,563688801.87,null,3889086497.9499998]
["420.13.00     ","Gastos Diversos",null,112747.63,null,440509.7]
[]
[null,"TOTAL DE GASTOS GENERALES",null,{"$f":"SUM(D12:D15)","v":563910957.51999998},null,{"$f":"SUM(F12:F15)","v":3890043987.6599998}]
[]
[null,"Gastos por servicios bancarios:"]
[null,"Corresponde a gastos por comisiones bancarias cobradas por el Banco Nacional , lo anterior a raíz de conclusión “Convenio Institucional entre el Poder Judicial y la referida Entidad Bancaria”, cuyo objeto consistía en que el Poder Judicial aceptaba realizar una serie de transacciones bancarias con el Banco Nacional, a efecto de recibir un trato preferencial en algunos servicios bancarios, como lo fueron: exoneración del pago de cualquier tipo de comisión (transferencias electrónicas, giros bancarios, emisión de estados de cuenta, transacciones “SINPE”, transferencias entre cuentas del Poder Judicial y el Fondo de Jubilaciones y Pensiones), dichos gatos son del conocimiento de la Dirección Ejecutiva, según oficios DGBI-SML-25-2016, 2232-DE-2016 y 2342-DE-2016."]
[]
[null,"Cotización Seguro de Enfermedad y Maternidad: "]
[null,"Carga social en la que incurre el Fondo como Patrono, con la Caja Costarricense del Seguro Social, por concepto de Enfermedad y Maternidad, correspondiente al 8.75% sobre las jubilaciones y pensiones canceladas."]
[]
[null,"Gastos diversos"]
[null,"Corresponde a diversos ajustes relacionados principalmente con las inversiones y cuentas relacionadas. "]

{"sheet":"Nota 13","index":16,"n_rows":26,"n_cols":8,"rows_kept":26,"cut":false,"hidden":false,"merged":[[2,1,3,7],[4,1,4,7],[7,1,7,7],[26,1,26,7],[27,1,27,7],[25,1,25,7],[24,1,24,7]]}
[]
[null,"Nota 13:"]
[null,"Cuentas Corrientes y de Ahorro"]
[]
[null,{"$f":"+'Nota 12'!B5:F5","v":"al 31 de Julio de 2019"}]
[]
[]
[null,"El saldo en cuentas corrientes bancarias que mantiene el Fondo de Jubilaciones en colones y en dólares americanos son los siguientes:"]
[]
["Cuenta Contable","CUENTAS CORRIENTES Y DE AHORRO PROV.  PARA PENSIONES EN CURSO DE PAGO",null,"TOTAL ¢",null,"TIPO DE CAMBIO",null,"TOTAL $ \n"]
[]
["112.01.00.1.01.01     ","Banco Nacional de C.R. Cta 1234-0",null,99000.02]
["112.01.00.1.01.03     ","Banco de Costa Rica Cta 229-32-9",null,3679527401.6999998]
["112.01.00.1.01.04     ","Banco de Costa Rica Cta 174961-7",null,99000]
["112.01.00.1.01.05     ","Banco Popular Cta 1019277-0",null,99000]
["112.01.00.1.01.06     ","Banco Nacional de C.R. 2413-8 ",null,0]
["112.01.00.1.01.07     ","Banco de Costa Rica 349803-4",null,79.81]
["112.01.00.1.01.08     ","Banco de Costa Rica 349824-7",null,41.74]
["112.01.00.2.01.01     ","Banco de Costa Rica Cta. 112247-9 $",null,18585586.059999999,null,569.79,null,{"$f":"+D19/F19","v":32618.308604924619}]
["112.01.00.2.01.02     ","Banco Nacional de C.R. Cta  601227-7 $",null,102562.18,null,{"$f":"F19","v":569.79},null,{"$f":"+D20/F20","v":179.9999648993489}]
["112.01.00.2.01.03     ","Banco Popular Cta 1914-1 $",null,292021.78999999998,null,{"$f":"F20","v":569.79},null,{"$f":"+D21/F21","v":512.50774846873412}]
[]
[null,"TOTAL EN CUENTAS CORRIENTES Y DE AHORRO",null,{"$f":"SUM(D12:D21)","v":3698804693.2999992},null,null,null,{"$f":"SUM(H19:H21)","v":33310.816318292702}]
[]
[null,"Nota: "]
[null,"Los documentos pendientes de asocies y aprobaciones,  se informaron a los Subprocesos correspondientes para su registro, y así el debido seguimiento."]

{"sheet":"Nota 14","index":17,"n_rows":29,"n_cols":8,"rows_kept":29,"cut":false,"hidden":false,"merged":[[2,1,3,7],[9,1,9,3],[19,1,19,3],[4,1,4,7],[7,1,7,7]]}
[]
[null,"Nota 14:"]
[null,"Inversiones en Valores de Emisores Nacionales "]
[]
[null,{"$f":"+'Nota 13'!B5:H5","v":"al 31 de Julio de 2019"}]
[]
[]
[null,"Dicho rubro resume los diferentes movimientos de inversiones en colones y dólares emitidas por el Gobierno de Costa Rica tales como el Ministerio de Hacienda, Banco Central de Costa Rica, Banco de Costa Rica, el Banco Nacional de Costa Rica, Banco Popular y de Desarrollo Comunal e Instituto Costarricense de Electricidad, considerando el registro de la inversión al costo de adquisición (Valor Facial + Primas – Descuentos). "]
[]
["Cuenta Contable","COLONES"]
[]
["121.00.00","Inv. Valor Facial",null,465835032060.28003]
["121.00.00","Primas ",null,8361496154.9199991]
["121.00.00","Descuentos",null,-4621922576.8900003]
["121.00.00","Operaciones de Reportos",null,0]
[]
[null,"SALDO INVERSIONES EN COLONES ",null,{"$f":"SUM(D12:D15)","v":469574605638.31}]
[]
[]
["Cuenta Contable","SALDO DÓLARES",null,null,null,"TIPO DE CAMBIO ",null,"SALDO EN COLONES"]
[]
["121.00.00","Inv. Valor Facial",null,75229868.364956841,null,569.79,null,43661158702.970001]
["121.00.00","Primas ",null,177237.30390957493,null,{"$f":"+F22","v":569.79},null,102863214.06999999]
["121.00.00","Descuentos",null,-623525.59405207029,null,{"$f":"+F23","v":569.79},null,-361875549.02000004]
["121.00.00","Títulos de Participación",null,50238796.133035824,null,{"$f":"+F24","v":569.79},null,29157090111.73]
[]
[null,"SALDO INVERSIONES EN DÓLARES (COLONIZADO)",null,{"$f":"SUM(D22:D25)","v":125022376.20785016},null,null,null,{"$f":"SUM(H22:H25)","v":72559236479.75}]
[]
[null,"TOTAL GENERAL:",null,{"$f":"+D17+H27","v":542133842118.06}]

{"sheet":"Nota 15","index":18,"n_rows":23,"n_cols":4,"rows_kept":23,"cut":false,"hidden":false,"merged":[[2,1,3,3],[4,1,4,3],[24,4,25,5],[7,1,7,3],[18,1,18,3],[20,1,20,3],[22,1,22,3],[24,1,24,3],[25,1,25,3]]}
[]
[null,"Nota 15:"]
[null,"CUENTAS POR COBRAR"]
[]
[null,{"$f":"+'Nota 14'!B5:H5","v":"al 31 de Julio de 2019"}]
[]
[]
[null,"En esta cuenta se registran aquellas partidas que debe recuperar el Fondo y se conforma por los siguientes conceptos:"]
[]
["Cuenta Contable","Cuentas por Cobrar",null,"Monto"]
[]
["131.01.00     ","Títulos vencidos pendientes de cobro",null,4658416.99]
["131.02.00     ","Impuesto Sobre La Renta Por Cobrar ",null,345541352.19]
["131.03.00     ","Sumas Pend. De cobrar ",null,38301.71]
[]
[null,"Saldo:",null,{"$f":"D12+D13+D14","v":350238070.88999999}]
[]
[]
[null,"1)    Títulos y Cupones de inversión vencidos pendientes de cobro, que en virtud de que el cierre de mes corresponde a un día no hábil, las entidades bancarias realizan el pago de estos el día hábil siguiente, para este mes esta cuenta no presenta saldo. Se solicitó al Proceso de Inversiones que es el encargado el seguimiento realizado. "]
[]
[null,"2) Corresponden aquellas sumas que debe recuperar el Régimen por concepto de exención del 8% del impuesto sobre la renta de los títulos valores, que por su situación particular, no es posible cobrarlos inmediatamente con el vencimiento de los cupones. El Subproceso de Ingresos indica lo siguiente con el seguimiento: (1) La Presidencia de la Corte remitió un oficio a Casa Presidencial para los años 2004 y 2005. (2) La Presidencia de la Corte remitió un oficio a Grandes Contribuyentes para lo del periodo 2018. (3) El Subproceso de Ingresos realizó las gestiones correspondientes para la devolución de los correspondiente de Fondos Inmobiliarios. De lo anterior, se solicitará a dicho Subproceso de Ingresos que es el encargo de dichas cuentas el seguimiento del mismo."]
[]
[null,"3)  En esta cuenta se registrará las cuentas por cobrar, generadas de la captación de inversiones, por comisiones pagadas de más, intereses moratorios u otros."]

{"sheet":"Nota 16","index":19,"n_rows":25,"n_cols":4,"rows_kept":25,"cut":false,"hidden":false,"merged":[[3,1,4,3],[5,1,5,3],[9,1,9,3],[11,1,11,3],[26,1,26,3]]}
[]
[null,"Nota 16:"]
[]
[null,"Productos por cobrar sobre Inversiones de Emisores Nacionales"]
[]
[null,{"$f":"+'Nota 15'!B5:D5","v":"al 31 de Julio de 2019"}]
[]
[null,"La cuenta se conforma por el registro de:"]
[]
[null,"·         La parte proporcional de los intereses devengados por las inversiones con cupones en títulos valores, que fueron adquiridos por el Fondo, acreditándose a la contrapartida de “Intereses Devengados”. "]
[]
[null,"·         Los intereses que se acumulan al costo de las inversiones del Mercado Primario y Secundario, donde se adquieren títulos valores de primera y segunda mano, con cupones de intereses corridos, los cuales se suman a los desembolsos que realiza el Fondo para la adquisición de esos valores, y que al vencimiento del cupón son reembolsados. "]
[]
["Cuenta Contable","Productos por cobrar sobre Inversiones",null,"Monto"]
[]
["132.01.01     ","Sobre Valores Emitidos Por El Banco Central",null,146755529.44999999]
["132.01.02     ","Sobre Valores Emitidos Por El Gobierno",null,9146434756.7800007]
["132.01.03     ","Sobre Valor. Emit. otras Ent Pub. no Fininancieras",null,239804318.13]
["132.01.04     ","Sobre Valores Emitidos Por Bancos Comerciales",null,370660577.23000002]
["132.01.05     ","Sobre Val. Emit. Bcos. Pub. Ley. Especiales",null,236168350.36000001]
["132.01.06     ","Sobre Val. Emit. Bcos. Bancos Privados",null,642597055.25999999]
["132.01.09   ","Sobre operaciones de Reportos",null,-0.04]
["132.02.00     ","Dividendos por Cobrar",null,112583369.55]
[]
[null,"Saldo",null,{"$f":"SUM(D16:D24)","v":10895003956.719999}]

{"sheet":"Nota 17","index":20,"n_rows":30,"n_cols":4,"rows_kept":30,"cut":false,"hidden":false,"merged":[[31,1,31,3],[29,1,29,3],[2,1,3,3],[4,1,4,3],[7,1,7,3],[26,1,26,3],[27,1,27,3]]}
[]
[null,"Nota 17:"]
[null,"Préstamos por Cobrar"]
[]
[null,{"$f":"+'Nota 16'!B6:D6","v":"al 31 de Julio de 2019"}]
[]
[]
[null,"Corresponde al saldo del préstamo por la suma de ¢1,000,000,000 concedido a la Asociación Nacional de Empleados Judiciales (ANEJUD) en apego de lo dispuesto en el artículo 238 de la Ley Orgánica del Poder Judicial, como se detalla:"]
[]
[null,"SUMAS GIRADAS A:",null," MONTO "]
[]
[null,"ANEJUD:  Débito No. 2863 de la Cta 174961-7 BCR el 9 de diciembre de 2008  (Autorizado por la Dirección Ejecutiva oficio No.9488-DE-08)",null,166244019.15000001]
[null,"ANEJUD: Débito No. 20806860 de la Cta 1234-0 BNCR el 9 de diciembre de 2008 (Autorizado por la Dirección Ejecutiva oficio No.9488-DE-08)",null,410921974.85000002]
[null,"ANEJUD:  Débito No. 379 de la Cta 229-32-9 BCR el 10 de febrero de 2009  (Autorizado por la Dirección Ejecutiva con oficio No. 1123-DE-2009 ).  El desembolso autorizado por esa Dirección Ejecutiva es por ¢422.834.006 de los cuales y a solicitud de ANEJUD con oficio del 10 de febrero de 2009 a Don Walter Jiménez Sorio, Jefe del Departamento Financiero Contable en su oportunidad, se deduce la primera cuota de intereses cancelada por adelantado de ¢6.876.239.  El total girado con el débito No. 379 es ¢415.957.767. ",null,422834006]
[]
[null,"TOTAL DE LOS DESEMBOLSOS",null,{"$f":"SUM(D12:D14)","v":1000000000}]
[]
[null,"Menos. Amortizaciones",null,{"$f":"996790563.73+3161461.33+47974.94","v":1000000000.0000001}]
[]
[null,"Saldo del préstamo",null,{"$f":"+D16-D18","v":0}]
[]
[null,"Mas: Intereses por cobrar"]
[]
[null,"TOTAL POR COBRAR",null,{"$f":"+D20+D22","v":0}]
[]
[]
[null,"El contrato para dicho préstamo se firmó en diciembre 2008 (contrato sin número) del cual ya se giró la totalidad de los recursos a esa entidad."]
[null,"Para los efectos de este crédito, se establecen intereses corrientes conforme se indica en la cuarta cláusula del contrato que dice:"]
[]
[null,"Tipo de interés corriente: Intereses iguales o superiores a los que recibiría el Fondo de Jubilaciones del Poder Judicial por inversiones en títulos valores del sector público, revisable semestralmente, según lo establece el artículo 238 de la Ley Orgánica del Poder Judicial y lo dispuesto por la Corte Plena en sesión celebrada el 15-12-03 artículo XXXIX."]

{"sheet":"Nota 18","index":21,"n_rows":56,"n_cols":10,"rows_kept":56,"cut":false,"hidden":false,"merged":[[57,1,57,9],[48,1,48,9],[50,1,50,9],[51,1,51,9],[53,1,53,9],[55,1,55,9],[39,1,39,9],[40,1,40,9],[42,1,42,9],[44,1,44,9],[47,1,47,9],[34,1,34,9],[35,1,35,9],[37,1,37,9],[38,1,38,9],[2,1,3,9],[4,1,4,9],[7,1,7,9],[31,1,31,9],[32,1,32,9]]}
[]
[null,"Nota 18:"]
[null,"APORTES POR COBRAR"]
[]
[null,{"$f":"+'Nota 17'!B5:D5","v":"al 31 de Julio de 2019"}]
[]
[]
[null,"Corresponden a los aporte de los trabajadores, del patrono, del estado y jubilados-Pensionados que se detallan a continuación:"]
[]
["Cuenta Contable","Nota",null,"Sub-nota",null,"APORTES POR COBRAR",null,"Detalle",null,"Total"]
[]
["151.00.00     ","16.1",null,null,null,"Aporte por cobrar a los trabajadores",null,null,null,{"$f":"SUM(H13:H15)","v":4495826461.8299999}]
[null,null,null,"16.1.1",null,"Aporte Ordinario",null,12578700.43]
[null,null,null,"16.1.2",null,"Aporte Ordinario S .Escolar",null,1604129362.01]
[null,null,null,"16.1.3",null,"Aporte Reconocimiento de tiempo servido",null,2879118399.3899999]
["152.00.00     ","16.2",null,null,null,"Aportes por cobrar al Patrono",null,null,null,{"$f":"SUM(H17:H18)","v":3368969709.6388001}]
[null,null,null,"16.2.1",null,"Aportes Por Cobrar Poder Jud.-Patrono",null,1600343912.5148001]
[null,null,null,"16.2.2",null,"Apor. x Cobrar Poder Jud.-Patrono (S.E)",null,1768625797.1240001]
["153.00.00     ","16.3",null,null,null,"Aportes por cobrar al Estado",null,null,null,{"$f":"SUM(H20:H21)","v":418945688.99000001}]
[null,null,null,"16.3.1",null,"Aportes Por Cobrar Poder Jud.-Estado",null,137501766.05000001]
[null,null,null,"16.3.2",null,"Apor. x Cobrar Poder Jud.-Estado (S.E)",null,281443922.94]
["154.00.00     ","16.4",null,null,null,"Otros aportes por cobrar",null,null,null,{"$f":"SUM(H23:H26)","v":216256174.99000001}]
[null,null,null,"16.4.1",null,"Sumas canceladas de más a Jubilados y Pensionados",null,89806094.870000005]
[null,null,null,"16.4.2",null,"Aportes Reconocimiento de Tiempo Servido Fuera del Poder Judicial (RTSFPJ)",null,26840592.690000001]
[null,null,null,"16.4.3",null,"Otros aportes por cobrar entidades deductoras",null,4232952.91]
[null,null,null,"16.4.4",null,"Sumas canceladas de más a Jubilados y Pensionados (Aguinaldo)",null,95376534.520000011]
[]
[{"$nulls":5},"TOTAL ",null,null,null,{"$f":"SUM(J12:J26)","v":8499998035.4487991}]
[]
[]
[]
[null,"16.1 Aportes por cobrar a los trabajadores"]
[null,"Este grupo contempla las sumas por cobrar proveniente de la estimación mensual del salario escolar a los servidores activos del Poder Judicial. Adicionalmente, incluye los aportes por cobrar de las obligaciones por reconocimiento de tiempo servido fuera del Poder Judicial aprobado por el Consejo Superior de la Corte Suprema de Justicia, a servidores judiciales activos, para efectos de jubilación."]
[]
[null,"16.2 Aportes por cobrar al Patrono "]
[null,"Se compone de las sumas pendientes de cobrar por aportes que recibe el Fondo de Jubilaciones y Pensiones del Estado en su calidad de patrono."]
[]
[null,"16.3 Aportes por cobrar al Estado "]
[null,"Este grupo lo componen las sumas pendientes de cobrar por aportes al Estado que recibe el Fondo de Jubilaciones y Pensiones. "]
[null,"16.4 Otros aportes por cobrar"]
[null,"16.4 .1 Sumas canceladas de más a Jubilados y Pensionados"]
[]
[null,"• Por fallecimiento: Dineros girados de más a jubilados y pensionados fallecidos, donde la fecha de su defunción no fue conocida oportunamente. Es importante anotar que en estos casos el Macroproceso Financiero Contable realiza como uno de los mecanismos alternativos para la recuperación de las sumas giradas en demasía, una “Acta de autorización de rebajo”, mediante la cual los beneficiarios al Fondo de Socorro Mutuo designados por el jubilado fallecido, autorizan voluntariamente la deducción de ese beneficio, de las sumas pagadas de más por el Fondo de Jubilaciones. Dicha deducción se realiza solo con el consentimiento de los causahabientes, los cuales acceden a honrar las obligaciones del jubilado fallecido. Para los casos en donde el procedimiento no ha resultado factible, se analiza el caso y se eleva a conocimiento de las instancias correspondientes. "]
[]
[null,"• Estudios por sumas canceladas de más a jubilados y pensionados: Además se registran las sumas canceladas de más por conceptos diversos, entre los cuales los más relevantes son los montos pagados de más a jubilados que en determinado momento ejercieron un puesto en el Sector Público percibiendo otro sueldo del Estado, de sus bancos, de sus instituciones, de las municipalidades, de las juntas de educación y de las empresas de economía mixta, a los cuales se les suspendió el beneficio del Fondo de Jubilaciones tardíamente, girándoseles recursos en demasía que no les correspondía, de conformidad con lo que reza el artículo 234 de la Ley Orgánica del Poder Judicial. "]
[]
[]
[null,"16.4.2 Aportes Reconocimiento de Tiempo Servido"]
[null,"Corresponde a las contribuciones por cobrar, como resultado del reconocimiento de tiempo servido fuera del Poder Judicial aprobado por el Consejo Superior de la Corte Suprema de Justicia, a servidores judiciales activos y jubilados o pensionados que asumen la deuda de un ex jubilado, según el artículo 231 de la Ley Orgánica del Poder Judicial."]
[]
[null,"16.4.3 Otros aportes por cobrar a Entidades Deductoras"]
[null,"Corresponde a cuentas por cobrar a las entidades deductoras por conceptos diversos entre los cuales los más relevantes son producto de:  "]
[]
[null,"·         La anulación de pagos por concepto de asignaciones por exclusión de beneficiarios del Fondo (fallecimiento, mayoría de edad, matrimonio o cuando el beneficiario se encuentra laborando para otra Institución del Estado mientras recibía el beneficio de su jubilación por parte de este Fondo)"]
[]
[null,"·         Diferencias en la aplicación de ajustes en los montos de las jubilaciones y pensiones que corresponden a deducciones en planilla que ya han sido giradas a dichas Entidades, cuando el Fondo se entera del suceso."]

{"sheet":"Nota 19","index":22,"n_rows":12,"n_cols":8,"rows_kept":12,"cut":false,"hidden":false,"merged":[[2,1,3,7],[4,1,4,7],[11,1,11,7]]}
[]
[null,"Nota 19:"]
[null,"INTANGIBLES"]
[]
[null,{"$f":"+'Nota 18'!B5:J5","v":"al 31 de Julio de 2019"}]
[]
[null,"Detalle",null,"Monto",null,"Amortización",null,"Total"]
[null,"Sistema inversiones \"Internet Systems Development Insyde S.A\"",null,7618670,null,-7618670,null,0]
[]
[]
[null,"Nota:"]
[null,"Corresponde al registro de la compra del Sistema de Inversiones a la empresa Internet Systems Development Insyde S.A. con un valor de $14,750.00, valorado al tipo de cambio de la fecha de adquisición del activo (15 de agosto de 2007) de ¢516.52, para un total de ¢7,618,670. A dicho monto se descuenta la amortización acumulada al cierre del presente mes que asciende a ¢7,618,670 para un activo neto de ¢0.00. La vida útil del sistema en mención es de 5 años y considerando que fue registrado en setiembre del 2007 se encuentra depreciado en su totalidad, no obstante, a la fecha de este informe se encuentra en funcionamiento. \n\nEn el periodo comprendido entre el 15 de julio a 12 de diciembre del 2011 la Dirección de Tecnología de Información realizó mejoras al sistema de Inversiones por la suma de ¢1.673.895. Lo anterior, de acuerdo con la información suministrada por la Dirección de Tecnología de la Información, mediante correo electrónico del 27 de abril del 2017 y oficio 1635-DTI-2017, dicho monto se encuentra registrado actualmente en los registros contables del Poder Judicial por igual suma.\n\nCon oficio 425-SC-2015 de 26 de agosto del 2015, se realizó la consulta a la Superintendencia de Pensiones (SUPEN) sobre la forma de registro contable de la información suministrada por la Dirección de Tecnología de Información, en virtud de que, en el Manual de Cuentas para el Régimen de Capitalización Colectiva emitido por dicha Superintendencia, no se observa alguna cuenta contable para el registro de la reevaluación de activos intangibles.\n\n La SUPEN ante la consulta realizada, indicó lo siguiente:\n\n“[…] conforme lo establecido en las Normas internacionales de Información Financiera (NIIF), se le comunica que no existe forma alguna de atribuir costo a un activo intangible luego del final de su vida útil: aunque esté en operación y generando beneficios, su valor en libros deberá seguir siendo cero…” \n\n\n\n\n"]

{"sheet":"Nota 20","index":23,"n_rows":21,"n_cols":8,"rows_kept":21,"cut":false,"hidden":false,"merged":[[3,2,4,4],[5,2,5,4],[8,2,8,4]]}
[]
[null,null,"Nota 20:"]
[]
[null,null,"Retenciones A Pensionados"]
[]
[null,null,{"$f":"+'Nota 19'!B5","v":"al 31 de Julio de 2019"}]
[]
[]
[null,null,"Comprende las retenciones mensuales aplicadas en la planilla de jubilados y pensionados judiciales correspondientes a entidades deductoras, que realiza el Fondo a sus distintos beneficiarios, las cuales en el caso de la retención del impuesto sobre la renta y la cuota obrera por enfermedad y maternidad son honradas hasta el mes siguiente de su aplicación."]
[]
[]
[null,"Cuenta Contable","RETENCIONES A JUBILADOS Y PENSIONADOS",null,"TOTAL"]
[]
[null,"211.01.00.1.00.00     ","Impuesto Sobre La Renta",null,571940596.16999996,null,null," "]
[null,"211.02.00.1.00.00     ","Caja Costarricense Seguro Social",null,322107889.41000003]
[null,"211.04.00.1.01.01     ","Caprede",null,142.69]
[null,"211.04.00.1.01.03     ","Anejud",null,410.12]
[null,"211.04.00.1.01.10     ","Asojupen",null,1161.3699999999999]
[null,"211.04.00.1.01.20     ","Coopenae",null,0]
[]
[null,null,"TOTAL DE RETENCIONES A JUBILADOS Y PENSIONADOS",null,{"$f":"SUM(E14:E20)","v":894050199.75999999}]

{"sheet":"Nota 21","index":24,"n_rows":27,"n_cols":4,"rows_kept":27,"cut":false,"hidden":false,"merged":[[3,1,4,3],[5,1,5,3],[7,1,7,5],[22,1,24,5]]}
[]
[null,"Nota 21:"]
[]
[null,"Obligaciones Por Liquidar Empleados y Exempleados"]
[]
[null,{"$f":"+'Nota 20'!C6","v":"al 31 de Julio de 2019"}]
[]
[null,"En esta cuenta se registran sumas sujetas a devolución por parte del Fondo de Jubilaciones y Pensiones que corresponden a pagos recibidos de más en la cancelación de obligaciones por cobrar por reconocimiento de tiempo servido fuera del Poder Judicial, derivados por el traslado de cuotas que realiza la Caja Costarricense del Seguro Social u otro régimen de pensiones hacia el Fondo de Jubilaciones, las cuales deben abonarse a las cuentas de los servidores judiciales, sin embargo, algunos de esos traslados ingresan cuando ya el servidor ha cancelado la deuda, por lo que se genera un pasivo a favor de éste. "]
[]
[]
[null,"OBLIGACIONES POR LIQUIDAR EMPL. Y EXEMPL.",null,"TOTAL"]
[]
[null,"ONGJ",null,3722763.78]
[null,"CMHM",null,80035.17]
[null,"ZALM",null,5202336.32]
[null,"ZALM",null,150152.56]
[null,"ZALM",null,150152.56]
[null,"GROG",null,67518.47]
[null,"RLMA",null,84.39]
[]
[null,"OBLIGACIONES POR LIQUIDAR EMPL. Y EXEMPL.",null,{"$f":"SUM(D13:D20)","v":9373043.2500000019}]
[]
[null,"Con respecto al caso de ONGJ, se ha dado el seguimiento respectivo y el Subproceso de Ingresos indicó lo siguiente: registrado en febrero 19 producto de devolución de Traslado de cuotas de la CCSS por RTS, cuya deuda fue reversada porque fue dejada según lo ordenado por Consejo Superiorsesión 14-19 artículo LXIV del 19 de febrero de 2019, sin embargo se debe esperar a que ese Consejo defina a cuanto equivale el monto a deducido por ese concepto y analice informe de Gestión Humana en donde se calcula dicho tiempo. Mediante correo electrónico del 2 de julio de 2019 el Subproceso de Ingresos informa: \"Con acuerdo del Consejo Superior de sesión 32-19 artículo XII, del 08 de mayo de 2019, se acordó: \": Solicitar criterio a la Dirección Jurídica, respecto a la procedencia de acreditar los recursos trasladados por la Caja Costarricense de Seguro Social (CCSS) al Fondo de Jubilaciones y Pensiones del Poder Judicial a nombre de los servidores.” De lo anterior, se consultó a la Dirección Jurídica sobre el estado actual con correo del 14/06/2019, a la fecha sin respuesta, mensualmente se consulta\". Se da seguimiento con el Subproceso de Ingresos. "]
[]
[]
[]
[null,"Con respecto a los otros casos, son ingresos de Julio 2019"]

{"sheet":"Nota 22","index":25,"n_rows":46,"n_cols":4,"rows_kept":46,"cut":false,"hidden":false,"merged":[[42,1,42,3],[43,1,43,3],[44,1,44,3],[45,1,45,3],[3,1,4,3],[5,1,5,3],[28,1,36,3],[8,1,8,3],[41,1,41,3],[38,1,38,3]]}
[]
[null,"Nota 22:"]
[]
[null,"Obligaciones Transitorias por Liquidar"]
[]
[null,{"$f":"+'Nota 21'!B6:D6","v":"al 31 de Julio de 2019"}]
[]
[]
[null,"En esta se registran sumas transitorias que deben liquidarse oportunamente y se compone de los siguientes rubros:"]
[]
["Cuenta Contable","Obligaciones Transitorias por Liquidar",null,"Saldo"]
["216.01.00.1.01.01","Cuotas para otros regímenes",null,2719678.65]
["216.03.00.1.01.01     ","Benef. no retirados y por fallecimiento",null,61907267.659999996]
["216.03.00.1.02.01     ","Sumas en transito por aclarar",null,5505660.8899999997]
["216.03.00.1.03.03     ","Instituciones Financieras -Banco de Costa Rica",null,60457.56]
["216.03.00.1.03.04     ","Institucione Financieras Banco Popular ¢",null,498197.34]
["216.03.00.1.04.01     ","*Intituciones Gubernamentales-Poder Judicial-¢",null,1299350]
["216.03.00.1.04.03     ","Instituciones Gubernamentales-Caja Costarricense Seguro Social",null,3804819.36]
["216.03.00.1.05.01     ","Anejud",null,148458.06]
["216.03.00.1.05.03     ","Otros-Errores Bancarios",null,4522.3]
["216.03.00.1.06.01     ","Transitoria de deducción",null,606440.63]
["216.03.00.1.07.01     ","* Aporte Junta Administradora FJP",null,1559650214.53]
["216.03.00.1.07.02     ","* Aporte Junta Administradora FJP - Jubilados y Pensionados",null,434538526.44999999]
["216.03.00.2.03.04     ","Instituciones Financieras-Banco Popular $",null,232250.73]
[]
[null,"Total Obligaciones Transitorias por Liquidar",null,{"$f":"SUM(D12:D24)","v":2070975844.1600001}]
[]
[]
[null,"* Nota 1: Mediante la publicación de la Ley 9544, se aplica la reforma al capítulo IV, art 239, referente a la comisión por gastos administrativos, la cua indica:      \" Surgirá de deducir un cinco por mil de los sueldos de que devengen los servidores judicial, así como de las jubilaciones y las pensiones a cargo del Fondo. Con estos recursos se pagarán las dietas de los miembros de la Junta Administradora, los salarios de su personal y, en general, sus gastos administrativos...\", dicho aporte dio inicio a partir del 22/05/2018."]
{"$rows_empty":9}
[null,"Con respecto a las sumas en tránsito por aclarar un monto de ¢ 3.733.069.11 es de meses anterios y se encuentra en análisis por parte del Subproceso de Ingresos y el monto de ¢ 1,772,591.78 se registró en Julio de 2019."]
[]
[null,"El monto sustancial por pagar a la Caja Costarricense del Seguro Social, obedece a:"]
[null,"o   ¢2,890,336 correspondiente a pagos dobles efectuados por dicha entidad producto de informes de inspección por cuotas canceladas de más y devolución de aportes. Lo anterior fue comunicado a la Dirección Ejecutiva mediante oficio 293-SC-2013 del 5 de julio del 2013, siendo que, dicha Dirección informó mediante oficio 5912-DE-2013 que toma nota de lo anterior. "]
[null,"o   ¢2,888 por suma pagada de más por la C.C.S.S en el informe de inspección 1238-00249-2012-I, misma que fue informada a la Dirección Ejecutiva mediante oficio 383-SC-2013 del 4 de septiembre del 2013. Siendo que dicha Dirección mediante oficio 1861-DE/AL-2012 del 16 de setiembre del 2013 informa que se toma de lo informado."]
[null,"o   ¢13,749 la cual obedece al caso de la señora MCSV dado que no corresponde la devolución efectuada por la C.C.S.S., en virtud que la Dirección Ejecutiva mediante oficio 555-DE/CA-2012 del 7 de junio del 2013, remitió resolución 3506-2012 del 7 de junio del 2012 en la cual ordena el archivo definitivo de la deuda por no proceder."]
[null,"o   ¢843,454 corresponde a la devolución de cuotas obrero-patronales según resolución emitida por la C.C.S.S, mediante Informe de Inspección de dicha entidad No. 1238-00079-2015-I del 26 de enero de 2015."]
[null,"o   ¢9.022 corresponde a la devolución de cuotas obrero-patronales según resolución emitida por la C.C.S.S, mediante Informe de Inspección de dicha entidad No. 1238-00274-2015-I del 09 de febrero de 2015."]

{"sheet":"Nota 23","index":26,"n_rows":12,"n_cols":6,"rows_kept":12,"cut":false,"hidden":false,"merged":[[3,1,4,5],[5,1,5,5],[8,1,8,5]]}
[]
[null,"Nota 23:"]
[]
[null,"Cotización Seguro De Enfermedad y Maternidad"]
[]
[null,{"$f":"+'Nota 22'!B6:D6","v":"al 31 de Julio de 2019"}]
[]
[]
[null,"Este pasivo se conforma por la cuota patronal del 8.75% que el Fondo de Jubilaciones y Pensiones debe pagar mensualmente a la Caja Costarricense de Seguro Social (C.C.S.S.), según lo estipulado en el artículo 62 del Reglamento del Seguro Salud."]
[]
["Cuenta Contable","Entidad",null,"Porcentaje",null,"Monto"]
["234.00.00","Caja Costarricense del Seguro Social",null,8.7499999999999994E-2,null,563814855.55999994]

{"sheet":"Nota 24","index":27,"n_rows":16,"n_cols":10,"rows_kept":16,"cut":false,"hidden":false,"merged":[[2,1,3,9],[4,1,4,9],[20,1,30,9],[6,1,6,9]]}
[]
[null,"Nota 24:"]
[null,"PROVISIONES PARA PENSIONES EN CURSO DE PAGO"]
[]
[null,{"$f":"+'Nota 23'!B6:F6","v":"al 31 de Julio de 2019"}]
[]
[null,"En esta cuenta se registra la totalidad de los recursos acumulados  generados de las actividades del Fondo de Jubilaciones y Pensiones provenientes en su mayoría de los aportes recibidos de las cuotas obrero patronales-estatales, así como de los intereses netos ganados en inversiones, con el fin de atender las obligaciones que se deriven de los beneficios establecidos reglamentariamente para los jubilados y pensionados actuales así como de los nuevos jubilados y pensionados. "]
[]
[]
["Cuenta Contable","Nota",null,"Sub-nota",null,"APORTES POR COBRAR",null,"Detalle",null,"Total"]
[]
["241.01.00     ","22.1",null,null,null,"Recursos recibido de reservas en formación",null,null,null,1122255175354.6799]
["241.02.00     ","22.2",null,null,null,"(Menos) Pago plan de beneficios",null,null,null,563123930712.48999]
["241.02.00.1.02.03     ",null,null,"22.2.1",null,"Traslados a otros regímenes",null,700412340.98000002]
[]
[{"$nulls":5},"TOTAL ",null,null,null,{"$f":"+J12-J13","v":559131244642.18994}]

{"sheet":"Nota 25","index":28,"n_rows":12,"n_cols":4,"rows_kept":12,"cut":false,"hidden":false,"merged":[[3,1,4,3],[5,1,5,3],[8,1,8,3]]}
[]
[null,"Nota 25:"]
[]
[null,"CUENTAS DE ORDEN DEUDORAS Y ACREDORAS"]
[]
[null,{"$f":"+'Nota 24'!B5:J5","v":"al 31 de Julio de 2019"}]
[]
[]
[null,"En esta cuenta se registran los saldos de las cuentas por cobrar por concepto de reconocimiento de tiempo servido en otras dependencias o instituciones públicas, de aquellos servidores en condición de propietarios que renunciaron al Poder Judicial. "]
[]
[null,"Concepto",null,"Monto"]
[null,"Cuentas por cobrar por reconocimiento de tiempo servido en otras dependencias o instituciones públicas, de aquellos servidores en condición de propietarios que renunciaron al Poder Judicial. ",null,296402668.36000001]